Workbook

Sheet 8
K2: Школа №_______________
K3: __________________________
C4: меню на 22 апреля
A5: № р-ры | B5: Наименование блюда | C5: Выход (гр) | D5: б | E5: ж | F5: у | G5: Ккал | H5: Цена (руб) | I5: № р-ры | J5: Наименование блюда | K5: Выход (гр) | L5: б | M5: ж | N5: у | O5: Ккал | P5: Цена (руб)
A6: Завтрак (7-11 лет) для учащихся первой смены | I6: Завтрак (12 лет и старше) родительская плата
A7: 324 | B7: икра кабачковая | C7: 60 | D7: 0.6 | E7: 0.08 | F7: 2.15 | G7: =(F7*4)+(E7*9)+(D7*4) -> 11.72 | H7: 17 | I7: ттк | J7: икра кабачковая | K7: 60 | L7: 1 | M7: 4.5 | N7: 4.28 | O7: 61 | P7: 17
A8: 388 | B8: Котлета рыбная | C8: 100 | D8: 12 | E8: 7 | F8: 16 | G8: =(F8*4)+(E8*9)+(D8*4) -> 178.82 | H8: 58 | I8: 388 | J8: Котлета рыбная | K8: 100 | L8: 12 | M8: 7 | N8: 16 | O8: 179 | P8: 58
A9: 520 | B9: Картофельное пюре | C9: 150 | D9: 2.97 | E9: 5.3 | F9: 26.1 | G9: =(F9*4)+(E9*9)+(D9*4) -> 163.98 | H9: 28 | I9: 520 | J9: Картофельное пюре | K9: 180 | L9: 3.56 | M9: 6.3 | N9: 31.3 | O9: =(N9*4)+(M9*9)+(L9*4) -> 196.14 | P9: 34
A10: 639 | B10: напиток из облепихи (варенье) | C10: 200 | D10: 1 | E10: 1 | F10: 31.5 | G10: 99.88 | H10: 7 | I10: 702 | J10: напиток из облепихи (варенье) | K10: 200 | L10: 0.6 | M10: 0 | N10: 31.4 | O10: =(N10*4)+(M10*9)+(L10*4) -> 128 | P10: 7
B11: Хлеб пшеничный | C11: 31 | D11: 2.3 | E11: 0.2 | F11: 15 | G11: 54 | H11: 4 | J11: Хлеб пшеничный | K11: 31 | L11: 2.3 | M11: 0.2 | N11: 15 | O11: 71 | P11: 3
B12: Хлеб ржаной | C12: 25 | D12: 1.6 | E12: 1 | F12: 9.6 | G12: 54 | H12: 3
B16: Итого | C16: =SUM(C7:C15) -> 566 | D16: =SUM(D7:D15) -> 21 | E16: =SUM(E7:E15) -> 15 | F16: =SUM(F7:F15) -> 100 | G16: =SUM(G7:G15) -> 562 | H16: =SUM(H7:H12) -> 117.00 | J16: Итого | K16: =SUM(K7:K15) -> 571 | L16: 20 | M16: 18 | N16: 98 | O16: 635 | P16: 119.00
A17: Обед (7-11 лет) для учащихся второй смены
A18: ттк | B18: икра кабачковая | C18: 60 | D18: 0.1 | E18: 5 | F18: 5 | G18: 61 | H18: 17
A19: 135 | B19: Суп овощной | C19: 200 | D19: 1.44 | E19: 5.6 | F19: 11.96 | G19: =(F19*4)+(E19*9)+(D19*4) -> 104 | H19: 15
A20: 388 | B20: Котлета рыбная | C20: 75 | D20: 12 | E20: 7 | F20: 16 | G20: 179 | H20: 43
A21: 520 | B21: Картофельное пюре | C21: 150 | D21: 2.97 | E21: 5.3 | F21: 26.1 | G21: 164 | H21: 28
A22: 685 | B22: Чай с сахаром | C22: 200 | D22: 0 | E22: 0 | F22: 7 | G22: =(F22*4)+(E22*9)+(D22*4) -> 28 | H22: 3
B23: Хлеб ржаной | C23: 25 | D23: 1.6 | E23: 1 | F23: 9.6 | G23: 54 | H23: 3
B27: Итого | C27: =SUM(C17:C25) -> 710 | D27: =SUM(D17:D25) -> 18 | E27: =SUM(E17:E25) -> 24 | F27: =SUM(F17:F25) -> 76 | G27: =SUM(G17:G25) -> 590 | H27: =SUM(H18:H26) -> 109.00
B29: _________________________________________________________________

Sheet 8 овз
K1: Школа №________
K3: _________________________
A4: меню на 22 апреля 2025
A5: № р-ры | B5: Наименование блюда | C5: Выход (гр) | D5: б | E5: ж | F5: у | G5: Ккал | H5: Цена (руб) | I5: № р-ры | J5: Наименование блюда | K5: Выход (гр) | L5: б | M5: ж | N5: у | O5: Ккал | P5: Цена (руб)
A6: Завтрак (ОВЗ) 1-4 классы | I6: Завтрак (ОВЗ) 5-11 классы
A7: 1 | B7: Бутерброд с маслом | C7: 40 | D7: 2 | E7: 4 | F7: 8 | G7: 73 | H7: 15 | I7: 1 | J7: Бутерброд с маслом | K7: 40 | L7: 2 | M7: 4 | N7: 8 | O7: 73 | P7: 15
A8: 04/с.246 | B8: Каша молочная из трёх круп | C8: 205 | D8: 7.67 | E8: 9.44 | F8: 23.8 | G8: 210.96 | H8: 19 | I8: 04/с.246 | J8: Каша молочная из трёх круп | K8: 205 | L8: 7.67 | M8: 9.44 | N8: 23.8 | O8: 210.96 | P8: 19
A9: 686 | B9: Чай с молоком и сахаром | C9: 200 | D9: 1.6 | E9: 1.3 | F9: 15.9 | G9: 81.82 | H9: 11 | I9: 686 | J9: Чай с молоком и сахаром | K9: 200 | L9: 1.6 | M9: 1.3 | N9: 15.9 | O9: 81.82 | P9: 11
B10: Хлеб ржаной | C10: 25 | D10: 1.6 | E10: 1 | F10: 9.6 | G10: 54 | H10: 3 | J10: Хлеб ржаной | K10: 25 | L10: 1.6 | M10: 1 | N10: 9.6 | O10: 54 | P10: 3
B11: Хлеб пшеничный | C11: 31 | D11: 2.3 | E11: 0.2 | F11: 15 | G11: 71 | H11: 3 | J11: Хлеб пшеничный | K11: 31 | L11: 2.3 | M11: 0.2 | N11: 15 | O11: 71 | P11: 3
C12: =SUM(C7:C11) -> 501 | D12: 16 | E12: 15 | F12: 72 | G12: 491 | H12: 51.00 | K12: =SUM(K7:K11) -> 501 | L12: 16 | M12: 15 | N12: 72 | O12: 491 | P12: 51.00
A13: Обед (ОВЗ) | I13: Обед (ОВЗ)
A14: ттк | B14: икра кабачковая | C14: 60 | D14: 0.1 | E14: 5 | F14: 20 | G14: 23 | H14: 17 | I14: ттк | J14: икра кабачковая | K14: 60 | L14: 0.1 | M14: 5 | N14: 20 | O14: 23 | P14: 17
A15: 135 | B15: Суп овощной со сметаной | C15: 260 | D15: 1.8 | E15: 7 | F15: 15 | G15: =(F15*4)+(E15*9)+(D15*4) -> 130.2 | H15: 24 | I15: 135 | J15: Суп овощной со сметаной | K15: 260 | L15: 1.8 | M15: 7 | N15: 15 | O15: =(N15*4)+(M15*9)+(L15*4) -> 130.2 | P15: 24
A16: 411 | B16: с мясом отварным | C16: 12.5 | H16: 23 | I16: 411 | J16: с мясом отварным | K16: 12.5 | P16: 23
A17: 388 | B17: котлета рыбная | C17: 100 | D17: 6.5 | E17: 4.2 | F17: 0.2 | G17: =(F17*4)+(E17*9)+(D17*4) -> 64.6 | H17: 58 | I17: 388 | J17: котлета рыбная | K17: 100 | L17: 6.5 | M17: 4.2 | N17: 0.2 | O17: =(N17*4)+(M17*9)+(L17*4) -> 64.6 | P17: 58
A18: 520 | B18: картофельное пюре | C18: 180 | D18: 12 | E18: 7 | F18: 16 | G18: 179 | H18: 34 | I18: 520 | J18: картофельное пюре | K18: 180 | L18: 12 | M18: 7 | N18: 16 | O18: 179 | P18: 34
A19: 639 | B19: компот с/ф | C19: 200 | D19: 3.56 | E19: 6.3 | F19: 31.3 | G19: =(F19*4)+(E19*9)+(D19*4) -> 196.14 | H19: 9 | I19: 639 | J19: компот с/ф | K19: 200 | L19: 3.56 | M19: 6.3 | N19: 31.3 | O19: =(N19*4)+(M19*9)+(L19*4) -> 196.14 | P19: 9
B20: хлеб пшеничный | C20: 31 | D20: 0.6 | E20: 0 | F20: 31.4 | G20: 128 | H20: 3 | J20: хлеб пшеничный | K20: 31 | L20: 0.6 | M20: 0 | N20: 31.4 | O20: 128 | P20: 3
B21: Хлеб ржаной | C21: 25 | D21: 2.3 | E21: 0.2 | F21: 15 | G21: 71 | H21: 3 | J21: Хлеб ржаной | K21: 25 | L21: 2.3 | M21: 0.2 | N21: 15 | O21: 71 | P21: 3
C22: =SUM(C14:C21) -> 868.5 | D22: 27 | E22: 30 | F22: 129 | G22: 792 | H22: 171.00 | K22: =SUM(K14:K21) -> 868.5 | L22: 27 | N22: 129 | O22: 792 | P22: 171.00
B24: Итого | C24: =C12+C22 -> 1370 | D24: 43 | E24: 46 | F24: 201 | G24: 1283 | H24: 222.00 | J24: Итого | K24: =K12+K22 -> 1370 | L24: 43 | M24: 15 | N24: 201 | O24: 1283 | P24: 222.00
B25: Зав. производством ООО "Юнрос"_____________________________
B26: _____________________________________________________________
